fUST/lending_fUST_20240423
["ID","MTS","AMOUNT","RATE_DAILY","PERIOD"]
[323280871,1713868240145,-2147.68,0.00021917,2]
[323280872,1713868240155,-2286.23,0.00021917,2]
[323280873,1713868240164,-500.0,0.00021917,2]
[323280874,1713868240173,-500.0,0.00021917,2]
[323280875,1713868240182,-500.0,0.00021917,2]
[323280876,1713868240193,-9428.18,0.00021917,2]
[323280877,1713868240202,-500.0,0.00021917,2]
[323280878,1713868240211,-500.0,0.00021917,2]
[323280879,1713868240221,-596.21248374,0.00021917,2]
[323280880,1713868240230,-578.71,0.00021917,2]
[323280881,1713868240239,-500.0,0.00021917,2]
[323280882,1713868240248,-500.0,0.00021917,2]
[323280883,1713868240257,-500.0,0.00021917,2]
[323280885,1713868240266,-500.0,0.00021917,2]
[323280887,1713868240275,-500.0,0.00021917,2]
[323280889,1713868240284,-500.0,0.00021917,2]
[323280890,1713868240294,-500.0,0.00021917,2]
[323280891,1713868240303,-500.0,0.00021917,2]
[323280892,1713868240312,-500.0,0.00021917,2]
[323280893,1713868240321,-1616.46,0.00021917,2]
[323280894,1713868240330,-527.59,0.00021917,2]
[323280895,1713868240339,-503.09762238,0.00021917,2]
[323280896,1713868240348,-578.73,0.00021917,2]
[323280897,1713868240357,-500.0,0.00021917,2]
[323280898,1713868240366,-500.0,0.00021917,2]
[323280899,1713868240375,-500.0,0.00021917,2]
[323280900,1713868240384,-500.0,0.00021917,2]
[323280901,1713868240393,-1551.11,0.00021917,2]
[323280902,1713868240402,-500.0,0.00021917,2]
[323280903,1713868240411,-745.85,0.00021917,2]
[323280904,1713868240420,-209.21,0.00021917,2]
[323280905,1713868240429,-500.0,0.00021917,2]
[323280907,1713868240439,-500.0,0.00021917,2]
[323280909,1713868240449,-3381.48,0.00021917,2]
[323280911,1713868240458,-1703.85,0.00021917,2]
[323280913,1713868240467,-823.02,0.00021917,2]
[323280914,1713868240476,-440.67037134,0.00021917,2]
[323280916,1713868240486,-500.0,0.00021917,2]
[323280918,1713868240495,-500.0,0.00021917,2]
[323280920,1713868240504,-500.0,0.00021917,2]
[323280922,1713868240514,-639.11,0.00021917,2]
[323280925,1713868240523,-500.0,0.00021917,2]
[323280926,1713868240532,-776.69,0.00021917,2]
[323280928,1713868240541,-537.99,0.00021917,2]
[323280930,1713868240551,-500.0,0.00021917,2]
[323280932,1713868240563,-362.14182298,0.00021917,2]
[323280935,1713868240573,-500.0,0.00021917,2]
[323280936,1713868240582,-1326.81,0.00021917,2]
[323280938,1713868240592,-501.81796725,0.00021917,2]
[323280941,1713868240603,-500.0,0.00021917,2]
[323280943,1713868240612,-500.0,0.00021917,2]
[323280944,1713868240621,-500.0,0.00021917,2]
[323280946,1713868240633,-500.00000046,0.00021917,2]
[323280949,1713868240642,-1382.35,0.00021917,2]
[323280951,1713868240651,-500.0,0.00021917,2]
[323280952,1713868240660,-500.0,0.00021917,2]
[323280955,1713868240670,-500.0,0.00021917,2]
[323280957,1713868240680,-500.0,0.00021917,2]
[323280959,1713868240692,-500.0,0.00021917,2]
[323280961,1713868240701,-500.0,0.00021917,2]
[323280963,1713868240711,-500.0,0.00021917,2]
[323280965,1713868240719,-500.0,0.00021917,2]
[323280966,1713868240728,-500.0,0.00021917,2]
[323280969,1713868240738,-500.0,0.00021917,2]
[323280971,1713868240747,-500.0,0.00021917,2]
[323280973,1713868240757,-1322.83,0.00021917,2]
[323280975,1713868240766,-500.0,0.00021917,2]
[323280977,1713868240775,-6825.17,0.00021917,2]
[323280979,1713868240784,-500.0,0.00021917,2]
[323280981,1713868240793,-565.52,0.00021917,2]
[323280983,1713868240802,-500.0,0.00021917,2]
[323280985,1713868240811,-1955.62,0.00021917,2]
[323280987,1713868240820,-500.0,0.00021917,2]
[323280989,1713868240830,-500.0,0.00021917,2]
[323280991,1713868240839,-500.0,0.00021917,2]
[323280992,1713868240848,-500.0,0.00021917,2]
[323280995,1713868240857,-400.0,0.00021918,2]
[323280996,1713868240868,-420.0,0.00021999,2]
[323280999,1713868240877,-159.06202442,0.00022,2]
[323281001,1713868240886,-153.0,0.00022046,2]
[323281002,1713868240895,-6933.42829517,0.00022091,3]
[323281035,1713868241185,-661.0,0.00020214,2]
[323281098,1713868243543,-17.04287141,0.00020214,2]
[323281099,1713868243552,-241.69961704,0.00021917,2]
[323281128,1713868246329,-258.30038296,0.00021917,2]
[323281129,1713868246339,-500.0,0.00021917,2]
[323281130,1713868246348,-500.0,0.00021917,2]
[323281131,1713868246357,-831.73,0.00021917,2]
[323281132,1713868246367,-500.0,0.00021917,2]
[323281133,1713868246376,-559.62529074,0.00021917,2]
[323281134,1713868246385,-500.0,0.00021917,2]
[323281135,1713868246394,-500.0,0.00021917,2]
[323281136,1713868246403,-5350.3443263,0.00022091,3]
[323281153,1713868744887,261.0,0.00024921,35]
[323281154,1713868745521,261.0,0.00024911,35]
[323281155,1713868746090,261.0,0.00024901,35]
[323281166,1713869159132,-526.34381075,0.00013597,2]
[323281167,1713869159205,-430.68580645,0.00013597,2]
[323281169,1713869234102,-474.79230604,0.00013586,2]
[323281170,1713869234126,-408.87824963,0.00013587,2]
[323281171,1713869234147,-977.80653021,0.00013587,2]
[323281172,1713869234166,-521.52942585,0.00013587,2]
[323281173,1713869234187,-154.82968734,0.00013587,2]
[323281174,1713869234209,-701.94771615,0.00013588,2]
[323281175,1713869234230,-1578.09578874,0.00013588,2]
[323281176,1713869234252,-459.70738052,0.00013588,2]
[323281177,1713869234274,-154.82968734,0.00013589,2]
[323281178,1713869234293,-154.82968734,0.00013589,2]
[323281179,1713869234312,-207.89139513,0.00013589,2]
[323281180,1713869234333,-300.0,0.00013589,2]
[323281181,1713869234353,-300.0,0.00013589,2]
[323281182,1713869234373,-5801.77357762,0.00013589,2]
[323281183,1713869234393,-308.49906714,0.0001359,2]
[323281184,1713869234412,-154.82968734,0.0001359,2]
[323281185,1713869234433,-468.44380318,0.0001359,2]
[323281186,1713869234452,-883.78313678,0.0001359,2]
[323281187,1713869234472,-808.46399951,0.0001359,2]
[323281188,1713869234491,-4057.02805952,0.0001359,2]
[323281189,1713869246117,-2623.97456043,0.00012235,2]
[323281190,1713869246137,-1550.76359454,0.00012235,2]
[323281191,1713869246157,-471.87732034,0.00012235,2]
[323281192,1713869246177,-693.39535602,0.00012236,2]
[323281193,1713869246195,-362.01061268,0.00013585,2]
[323281194,1713869246216,-564.51895848,0.00013586,2]
[323281195,1713869246237,-154.82968734,0.00013586,2]
[323281196,1713869246258,-1490.32391025,0.00013586,2]
[323281197,1713869246280,-521.52942585,0.00013589,2]
[323281198,1713869246299,-883.78313678,0.00013589,2]
[323281199,1713869246318,-8630.01863531,0.0001359,2]
[323281203,1713869350240,-1678.29832492,0.00012106,2]
[323281204,1713869350264,-300.05828581,0.00012107,2]
[323281205,1713869350283,-2587.76784421,0.00012227,2]
[323281206,1713869350305,-300.0,0.00012228,2]
[323281207,1713869350326,-300.0,0.00012228,2]
[323281208,1713869350348,-539.84959505,0.00012228,2]
[323281209,1713869350370,-154.82968734,0.00012228,2]
[323281210,1713869350389,-154.82968734,0.00012228,2]
[323281211,1713869350409,-157.76351589,0.00012229,2]
[323281212,1713869350429,-247.22010741,0.00012229,2]
[323281213,1713869350448,-300.0,0.00012229,2]
[323281214,1713869350468,-206.06744026,0.00012229,2]
[323281215,1713869350488,-193.60170872,0.00012229,2]
[323281216,1713869350511,-154.82968734,0.0001223,2]
[323281217,1713869350533,-154.82968734,0.0001223,2]
[323281218,1713869350555,-623.77275616,0.00012231,2]
[323281219,1713869350575,-623.77275616,0.00012231,2]
[323281220,1713869350596,-883.78313678,0.00013421,2]
[323281221,1713869350616,-471.87732034,0.00013421,2]
[323281222,1713869350638,-420.0,0.00013421,2]
[323281223,1713869350657,-2623.97456043,0.00013422,2]
[323281224,1713869350676,-521.52942585,0.00013422,2]
[323281225,1713869350696,-154.82968734,0.00013422,2]
[323281226,1713869350715,-977.80653021,0.00013423,2]
[323281227,1713869350735,-154.82968734,0.00013423,2]
[323281228,1713869350755,-474.79230604,0.00013423,2]
[323281229,1713869350775,-154.82968734,0.00013424,2]
[323281230,1713869350796,-420.0,0.00013451,2]
[323281231,1713869350815,-5801.77357762,0.00013587,2]
[323281232,1713869350835,-404.61123118,0.00013588,2]
[323281233,1713869350855,-701.94771615,0.00013588,2]
[323281234,1713869350875,-158.16815901,0.00013588,2]
[323281235,1713869350895,-410.30394386,0.00013588,2]
[323281236,1713869350918,-501.98208771,0.00013588,2]
[323281237,1713869350940,-363.59898215,0.00013588,2]
[323281238,1713869350963,-479.22725919,0.00013588,2]
[323281239,1713869350985,-362.01061268,0.00013588,2]
[323281240,1713869351006,-36760.65440225,0.00013588,2]
[323281241,1713869352157,-35799.43598873,0.00013588,2]
[323281242,1713869352180,-210.96506684,0.00013589,2]
[323281243,1713869352200,-1578.09578874,0.00013589,2]
[323281244,1713869352222,-807.83770631,0.00013589,2]
[323281245,1713869352242,-468.2653797,0.00013589,2]
[323281246,1713869352262,-308.26329678,0.00013589,2]
[323281247,1713869352283,-182.83290751,0.00013589,2]
[323281248,1713869352303,-690.331577,0.00013699,2]
[323281249,1713869352323,-525.93861077,0.00013739,2]
[323281250,1713869352344,-1192.1767146,0.00013744,2]
[323281251,1713869352368,-2516.3002862,0.00013746,2]
[323281252,1713869352390,-587.0,0.0001473,2]
[323281253,1713869352410,-1955.3744156,0.00014751,2]
[323281254,1713869352431,-587.0,0.00014796,2]
[323281255,1713869352452,-157.03688122,0.00015,2]
[323281256,1713869352474,-628.221272,0.00015,2]
[323281257,1713869352495,-1675.82446385,0.00015,2]
[323281258,1713869352516,-2099.47208497,0.00015,2]
[323281259,1713869352541,-24900.0,0.0001586,2]
[323281260,1713869352562,-7316.5452518,0.00015987,2]
[323281261,1713869352583,-823.0,0.00016166,2]
[323281262,1713869352604,-823.0,0.00016276,2]
[323281263,1713869352627,-1398.64856332,0.000164,2]
[323281264,1713869352647,-272.57129579,0.000165,2]
[323281265,1713869352668,-155.07799985,0.00016863,2]
[323281266,1713869352688,-191.70251594,0.00016863,2]
[323281267,1713869352708,-170.54852013,0.00016863,2]
[323281268,1713869352730,-1311.22668928,0.00016863,2]
[323281269,1713869352750,-154.86062544,0.00016863,2]
[323281270,1713869352770,-1087.28742838,0.00016863,2]
[323281271,1713869352791,-259.4890615,0.00016864,2]
[323281272,1713869352812,-611.736492,0.00016868,2]
[323281273,1713869352838,-150.0,0.000171,2]
[323281274,1713869352859,-17403.17165297,0.000175,2]
[323281275,1713869352881,-250.0,0.00017648,2]
[323281276,1713869352902,-1152.0,0.00017743,2]
[323281277,1713869352924,-167.11312288,0.00017785,2]
[323281278,1713869352945,-1398.64856332,0.00017823,2]
[323281279,1713869352966,-12610.71640316,0.00017891,2]
[323281280,1713869352987,-188.81822926,0.00017893,2]
[323281281,1713869353011,-1152.0,0.00017904,2]
[323281282,1713869353035,-580.7948807,0.00018,2]
[323281283,1713869353056,-129.32694031,0.00018,2]
[323281355,1713869438510,-297.728,0.00012105,2]
[323281356,1713869438523,-1530.72040919,0.00012105,2]
[323281357,1713869438533,-311.18633045,0.00013489,2]
[323281358,1713869438541,-24900.0,0.00017855,2]
[323281359,1713869438550,-157.68285507,0.00017999,2]
[323281360,1713869438559,-73.28855724,0.00018,2]
[323281361,1713869438569,-167.11312286,0.00018298,2]
[323281362,1713869438578,-603.3578092,0.00018674,2]
[323281363,1713869438587,-770.36794944,0.00018675,2]
[323281364,1713869438596,-311.18633042,0.00018688,2]
[323281365,1713869438606,-154.82968734,0.00018808,2]
[323281366,1713869438615,-1678.29832492,0.00018808,2]
[323281367,1713869438624,-628.221272,0.00018809,2]
[323281368,1713869438633,-157.76351589,0.00018809,2]
[323281369,1713869438642,-2099.47208497,0.00018809,2]
[323281370,1713869438651,-883.78313678,0.00018809,2]
[323281371,1713869438660,-2587.76784421,0.00018809,2]
[323281372,1713869438669,-300.0,0.0001881,2]
[323281373,1713869438678,-247.22010741,0.0001881,2]
[323281374,1713869438687,-154.82968734,0.0001881,2]
[323281375,1713869438698,-167.11312286,0.00018811,2]
[323281376,1713869438709,-5801.77357762,0.00018899,2]
[323281377,1713869438718,-3725.61110712,0.000189,2]
[323281378,1713869438728,-189.19295912,0.00019076,2]
[323281379,1713869438737,-300.0,0.00019077,2]
[323281380,1713869438746,-637.9252794,0.00019077,2]
[323281381,1713869438756,-200.92339208,0.00019078,2]
[323281382,1713869438765,-1158.3410573,0.00019078,2]
[323281383,1713869438774,-240.47928456,0.00019174,2]
[323281384,1713869438784,-173.81104632,0.00019174,2]
[323281385,1713869438793,-154.95418533,0.00019174,2]
[323281386,1713869438802,-672.7681383,0.00019174,2]
[323281387,1713869438814,-291.9508022,0.00019174,2]
[323281388,1713869438824,-206.88595551,0.00019174,2]
[323281389,1713869438834,-154.95429644,0.00019174,2]
[323281390,1713869438843,-156.21791875,0.00019174,2]
[323281391,1713869438853,-301.08341595,0.00019174,2]
[323281392,1713869438862,-214.55189169,0.00019174,2]
[323281393,1713869438871,-1364.66318969,0.00019174,7]
[323281394,1713869438880,-1524.72065947,0.00019175,2]
[323281395,1713869438889,-72560.09039098,0.00019177,2]
[323281396,1713869438898,-165.548625,0.00019178,2]
[323281397,1713869438907,-166.136599,0.00019178,2]
[323281398,1713869438917,-500.0,0.00019311,2]
[323281399,1713869438926,-500.0,0.00019311,2]
[323281400,1713869438939,-500.0,0.00019311,2]
[323281401,1713869438948,-500.0,0.00019311,2]
[323281402,1713869438961,-227.36696873,0.00019311,2]
[323281403,1713869438970,-500.0,0.00019311,2]
[323281404,1713869438979,-500.0,0.00019311,2]
[323281405,1713869438988,-500.0,0.00019311,2]
[323281406,1713869438998,-500.0,0.00019311,2]
[323281407,1713869439007,-398.17393315,0.00019311,2]
[323281408,1713869439018,-500.0,0.00019311,2]
[323281409,1713869439027,-500.0,0.00019311,2]
[323281410,1713869439038,-376.71413806,0.00019311,2]
[323281411,1713869439331,-106.33662413,0.00019311,2]
[323281425,1713869441143,-16.94923781,0.00019311,2]
[323281426,1713869441153,-485.0328499,0.00019311,2]
[323281777,1713869446592,-521.52942585,0.00018807,2]
[323281778,1713869446602,-14.9671501,0.00019311,2]
[323281780,1713869446611,-500.0,0.00019311,2]
[323281782,1713869446620,-500.0,0.00019311,2]
[323281784,1713869446630,-500.0,0.00019311,2]
[323281786,1713869446639,-500.0,0.00019311,2]
[323281788,1713869446648,-500.0,0.00019311,2]
[323281790,1713869446657,-348.67954932,0.00019311,2]
[323281792,1713869446666,-500.0,0.00019311,2]
[323281794,1713869446675,-500.0,0.00019311,2]
[323281796,1713869446684,-500.0,0.00019311,2]
[323281798,1713869446693,-500.0,0.00019311,2]
[323281800,1713869446702,-500.0,0.00019311,2]
[323281802,1713869446713,-444.48556464,0.00019312,2]
[323281805,1713869446722,-167.11312286,0.00019323,2]
[323281807,1713869446731,-167.11312286,0.00019836,2]
[323281810,1713869446741,-839.189138,0.00019899,2]
[323281812,1713869446749,-701.94771615,0.00019997,2]
[323281815,1713869446759,-227.42172021,0.00019998,2]
[323281818,1713869446769,-157.12911189,0.00019998,2]
[323281821,1713869446778,-154.89156354,0.00019998,2]
[323281823,1713869446787,-348.18573427,0.00019998,2]
[323281826,1713869446796,-166.6482812,0.00019998,2]
[323281828,1713869446805,-2623.01567159,0.00019998,2]
[323281831,1713869446815,-156.08493432,0.00019998,2]
[323281832,1713869446825,-471.62534313,0.00019998,2]
[323281834,1713869446834,-439.53202123,0.00019998,2]
[323281836,1713869446843,-977.04089907,0.00019998,2]
[323281838,1713869446852,-296.02935564,0.00019998,2]
[323281840,1713869446862,-273.89897389,0.00019998,2]
[323281842,1713869446872,-1674.53760629,0.00019998,2]
[323281844,1713869446881,-319.72058798,0.0002,2]
[323281846,1713869446890,-3565.71160201,0.0002,2]
[323282278,1713869466777,500.0,0.00025,30]
[323282291,1713870347126,-432.83035053,0.0001669,2]
[323282292,1713870347148,-432.83035053,0.0001669,2]
[323282293,1713870347169,-272.57129579,0.0001669,2]
[323282294,1713870347190,-432.83035053,0.0001669,2]
[323282295,1713870347209,-212.06825711,0.00016691,2]
[323282296,1713870347229,-690.168842,0.00016694,2]
[323282297,1713870347249,-300.0,0.00017641,2]
[323282298,1713870347272,-300.0,0.00017641,2]
[323282299,1713870347292,-24900.0,0.00017642,2]
[323282300,1713870347310,-2795.00669311,0.00017644,2]
[323282304,1713870441149,-300.88508874,0.00017641,2]
[323282305,1713870546156,-564.51895848,0.00017098,2]
[323282306,1713870546177,-300.0,0.00017099,2]
[323282307,1713870546198,-300.0,0.00017099,2]
[323282308,1713870546218,-285.28205948,0.000171,2]
[323282309,1713870546240,-285.28205948,0.000171,2]
[323282310,1713870546259,-285.28205948,0.000171,2]
[323282311,1713870546279,-285.28205948,0.000171,2]
[323282312,1713870546300,-285.28205948,0.000171,2]
[323282313,1713870546320,-285.28205948,0.000171,2]
[323282314,1713870546340,-285.28205948,0.000171,2]
[323282315,1713870546360,-285.28205948,0.000171,2]
[323282316,1713870546381,-285.28205948,0.000171,2]
[323282317,1713870546401,-285.28205948,0.000171,2]
[323282318,1713870546422,-285.28205948,0.000171,2]
[323282319,1713870546441,-285.28205948,0.000171,2]
[323282320,1713870546461,-285.28205948,0.000171,2]
[323282321,1713870546483,-285.28205948,0.000171,2]
[323282322,1713870546504,-285.28205948,0.000171,2]
[323282323,1713870546527,-285.28205948,0.000171,2]
[323282324,1713870546548,-285.28205948,0.000171,2]
[323282325,1713870546676,-285.28205948,0.000171,2]
[323282326,1713870546698,-285.28205948,0.000171,2]
[323282327,1713870546717,-285.28205,0.000171,2]
[323282328,1713870546736,-407.68630049,0.0001712,2]
[323282329,1713870546756,-154.82968734,0.00017121,2]
[323282330,1713870546776,-2775.48792824,0.00017121,2]
[323282331,1713870546796,-1578.09578874,0.00017121,2]
[323282332,1713870546817,-24900.0,0.00017122,2]
[323282333,1713870546838,-167.11312286,0.00017543,2]
[323282334,1713870546857,-154.82968734,0.00017641,2]
[323282335,1713870546880,-459.70738052,0.00017642,2]
[323282336,1713870546900,-15616.15004982,0.00017644,2]
[323282337,1713870546920,-247.22010741,0.00017739,2]
[323282338,1713870546941,-883.78313678,0.00017752,2]
[323282339,1713870546961,-188.81822926,0.00017753,2]
[323282340,1713870546982,-853.24963095,0.00017853,2]
[323282341,1713870547001,-693.39535602,0.00017998,2]
[323282342,1713870547039,-8196.3508595,0.00018066,2]
[323282343,1713870547058,-272.57129579,0.00018672,2]
[323282344,1713870547078,-603.3578092,0.00018673,2]
[323282345,1713870547098,-183.0,0.00018674,2]
[323282346,1713870547121,-954.1175825,0.00018799,2]
[323282347,1713870547141,-5713.30335008,0.00018801,2]
[323282348,1713870547162,-308.53767118,0.00018805,2]
[323282349,1713870547182,-154.93796607,0.00018805,2]
[323282350,1713870547202,-420.0,0.00018809,2]
[323282351,1713870547222,-3447.68471735,0.000189,2]
[323282352,1713870547244,-637.9252794,0.00019,2]
[323282353,1713870547263,-189.19295912,0.00019176,2]
[323282354,1713870547283,-166.849891,0.00019178,2]
[323282355,1713870547303,-35.04879458,0.00019178,2]
[323282356,1713870563100,-241.51912105,0.00017641,2]
[323282800,1713870639214,-628.221272,0.00017636,2]
[323282803,1713870639223,-154.82968734,0.00017636,2]
[323282805,1713870639232,-162.02240911,0.00017637,2]
[323282807,1713870639242,-306.70987129,0.00017638,2]
[323282982,1713870644113,-895.49176087,0.00017638,2]
[323282983,1713870644123,-35.3604549,0.00017641,2]
[323282984,1713870644132,-564.51895848,0.00018898,2]
[323282985,1713870644141,-5860.78551844,0.00018899,2]
[323283001,1713870764479,850.97,0.00025,30]
[323283008,1713870913390,500.0,0.00025,30]
[323283022,1713871550166,-1550.76359454,0.00017589,2]
[323283023,1713871550185,-882.56596295,0.0001759,2]
[323283024,1713871550205,-300.0,0.00018324,2]
[323283025,1713871550224,-154.82968734,0.00018325,2]
[323283026,1713871550365,-7866.94121737,0.00018508,2]
[323283027,1713871550388,-1202.20163216,0.00018509,2]
[323283028,1713871550411,-300.0,0.0001851,2]
[323283029,1713871550437,-300.0,0.0001851,2]
[323283030,1713871550460,-1620.29564358,0.00018516,2]
[323283031,1713871550482,-173.22582113,0.00018516,2]
[323283032,1713871550504,-24900.0,0.00018517,2]
[323283033,1713871550526,-345.084421,0.00018519,2]
[323283034,1713871550547,-189.19295912,0.00019175,2]
[323283035,1713871550567,-154.84515485,0.00019176,2]
[323283036,1713871550590,-130.49983042,0.00019178,2]
[323283037,1713871550610,-166.136599,0.00019178,2]
[323283038,1713871550632,-261.31066773,0.00019897,2]
[323283039,1713871550653,-2000.0,0.000199,2]
[323283040,1713871550674,-306.0,0.000199,2]
[323283041,1713871550695,-1512.29425569,0.000199,2]
[323283042,1713871550715,-302.10870205,0.00019978,2]
[323283043,1713871550736,-1966.47,0.0001999,3]
[323283044,1713871550756,-12094.73995021,0.00019997,2]
[323283045,1713871550777,-1675.82446385,0.00019997,2]
[323283046,1713871550797,-674.43877435,0.00019997,2]
[323283047,1713871550831,-199.44025601,0.00019997,2]
[323283048,1713871550856,-471.87732034,0.00019998,2]
[323283049,1713871550877,-1490.32391025,0.00019998,2]
[323283050,1713871550898,-362.01061268,0.00019998,2]
[323283051,1713871550920,-2623.97456043,0.00019998,2]
[323283052,1713871550942,-157.38931091,0.00019998,2]
[323283053,1713871550965,-1673.9118559,0.00019998,2]
[323283054,1713871550986,-289.46802612,0.00019998,2]
[323283055,1713871551006,-539.63707301,0.00019998,2]
[323283056,1713871551027,-277.994233,0.00019998,2]
[323283057,1713871551048,-161.44973526,0.00019998,2]
[323283058,1713871551069,-211.67652827,0.00019998,2]
[323283059,1713871551090,-1116.00580619,0.00019998,2]
[323283060,1713871551110,-272.47345857,0.00019998,2]
[323283061,1713871551131,-460.9047311,0.00019998,2]
[323283062,1713871551152,-250.4086408,0.00019998,2]
[323283063,1713871551172,-562.92020653,0.00019998,2]
[323283064,1713871551193,-250.87439892,0.00019998,2]
[323283065,1713871551216,-154.86062544,0.00019998,2]
[323283066,1713871551236,-154.82968734,0.00019998,2]
[323283067,1713871551258,-154.82968734,0.00019998,2]
[323283068,1713871551280,-154.82968734,0.00019998,2]
[323283069,1713871551301,-154.82968734,0.00019998,2]
[323283070,1713871551322,-154.82968734,0.00019998,2]
[323283071,1713871551342,-154.82968734,0.00019998,2]
[323283072,1713871551364,-154.82968734,0.00019998,2]
[323283073,1713871551386,-154.82968734,0.00019998,2]
[323283074,1713871551408,-2962.17611975,0.00019999,2]
[323283075,1713871551430,-1575.40688831,0.00019999,2]
[323283076,1713871551452,-500.0,0.00019999,2]
[323283077,1713871551474,-500.0,0.00019999,2]
[323283078,1713871551495,-500.0,0.00019999,2]
[323283079,1713871551516,-500.0,0.00019999,2]
[323283080,1713871551536,-500.0,0.00019999,2]
[323283081,1713871551558,-500.0,0.00019999,2]
[323283082,1713871551581,-500.0,0.00019999,2]
[323283083,1713871551602,-500.0,0.00019999,2]
[323283084,1713871551624,-500.0,0.00019999,2]
[323283085,1713871551643,-500.0,0.00019999,2]
[323283086,1713871551666,-500.0,0.00019999,2]
[323283087,1713871551685,-500.0,0.00019999,2]
[323283088,1713871551706,-500.0,0.00019999,2]
[323283089,1713871551726,-273.91067918,0.00019999,2]
[323283090,1713871551746,-413.70919907,0.00019999,2]
[323283091,1713871551765,-500.0,0.00019999,2]
[323283092,1713871551786,-464.77983504,0.00019999,2]
[323283093,1713871551805,-500.0,0.00019999,2]
[323283094,1713871551825,-225.80733524,0.00019999,2]
[323283095,1713871551846,-398.44036651,0.00019999,2]
[323283096,1713871551866,-480.47023738,0.00019999,2]
[323283097,1713871551890,-359.93528015,0.00019999,2]
[323283098,1713871551910,-155.35265924,0.00019999,2]
[323283099,1713871551932,-4503.62156828,0.0002,2]
[323283100,1713871645136,-173.22582113,0.00018969,2]
[323283101,1713871645161,-336.72638034,0.0001897,2]
[323283102,1713871645186,-2000.0,0.00019898,2]
[323283103,1713871645212,-300.0,0.00019989,2]
[323283104,1713871645238,-300.0,0.00019989,2]
[323283105,1713871645264,-983.23,0.0001999,3]
[323283106,1713871645290,-491.62,0.0001999,3]
[323283107,1713871645314,-245.81,0.0001999,3]
[323283108,1713871645339,-737.45,0.0001999,3]
[323283109,1713871645364,-1550.76359454,0.00019998,2]
[323283110,1713871645386,-300.0,0.00019998,2]
[323283111,1713871645406,-1163.7259416,0.00019998,2]
[323283112,1713871645427,-1312.23172207,0.00019999,2]
[323283113,1713871645638,-9629.9880399,0.0002,2]
[323283114,1713871645660,-1893.95999757,0.0002,2]
[323283115,1713871645682,-154.82968734,0.0002,2]
[323283116,1713871645714,-678.04287141,0.0002,2]
[323283117,1713871645735,-241.51912105,0.0002,2]
[323283118,1713871645755,-354.80715765,0.0002,2]
[323283119,1713871645776,-1442.68762834,0.0002,2]
[323283120,1713871645797,-524.5590718,0.0002,4]
[323283121,1713871645816,-154.82968734,0.0002,2]
[323283122,1713871645836,-400.0,0.0002,2]
[323283123,1713871645856,-238.88786072,0.0002,2]
[323283124,1713871645876,-2000.0,0.0002,2]
[323283125,1713871645896,-2000.0,0.0002,2]
[323283126,1713871645916,-1420.0,0.0002,2]
[323283127,1713871645935,-319.72058798,0.0002,2]
[323283128,1713871645955,-80000.0,0.0002,2]
[323283129,1713871645977,-5817.23653922,0.0002,2]
[323283130,1713871654085,-11340.79296874,0.0002,2]
[323283131,1713871654106,-1684.01811317,0.0002,2]
[323283132,1713871654127,-958.01,0.0002,2]
[323283133,1713871654147,-277.98874346,0.0002,2]
[323283134,1713871654170,-154.82968734,0.0002,2]
[323283135,1713871654191,-154.82968734,0.0002,2]
[323283136,1713871654211,-306.0,0.0002,2]
[323283137,1713871654232,-200.0,0.0002,2]
[323283138,1713871654251,-306.0,0.0002,2]
[323283139,1713871654271,-153.0,0.00020027,2]
[323283140,1713871654292,-1512.29425567,0.0002038,2]
[323283141,1713871654312,-153.0,0.00020438,2]
[323283142,1713871654331,-153.0,0.00020438,2]
[323283143,1713871654350,-153.0,0.00020438,2]
[323283144,1713871654370,-203.583665,0.00020438,2]
[323283145,1713871654391,-329.41998167,0.00020444,2]